bitfinex/quotes_SOLUSD_20240612
["timestamp","ask_amount","ask_price","bid_price","bid_amount"]
[1718225767263,281.0912,154.96,154.88,8.0]
[1718225767465,8.0,154.93,154.88,6.8475]
[1718225768459,8.0,154.93,154.87,8.0]
[1718225770963,8.0,154.93,154.88,8.0]
[1718225771765,9.68791917,154.9,154.88,8.0]
[1718225772158,9.68791917,154.91,154.88,8.0]
[1718225775549,9.68791917,154.91,154.86,0.17]
[1718225775550,9.68791917,154.91,154.87,8.0]
[1718225775757,9.68791917,154.9,154.87,8.0]
[1718225778169,9.68791917,154.91,154.87,8.0]
[1718225779554,9.68791917,154.91,154.88,8.17]
[1718225779755,9.68791917,154.92,154.9,8.0]
[1718225780176,9.68770393,154.93,154.9,8.0]
[1718225783885,9.68690325,154.93,154.9,8.0]
[1718225784389,9.68690325,154.94,154.9,8.0]
[1718225785782,9.68690325,154.94,154.91,0.17]
[1718225785965,9.68690325,154.94,154.93,8.0]
[1718225786277,9.68690325,154.95,154.93,8.0]
[1718225786478,15.7611,155.03,154.94,8.0]
[1718225786857,15.7611,155.03,154.95,8.0]
[1718225787053,8.0,155.0,154.95,8.0]
[1718225787257,15.7611,155.03,154.95,8.0]
[1718225787786,15.7611,155.03,154.96,0.17]
[1718225788276,15.7611,155.03,154.97,0.17]
[1718225788586,8.0,155.01,154.97,0.17]
[1718225788911,8.0,155.02,154.97,0.17]
[1718225789070,8.0,155.01,154.97,0.17]
[1718225790153,15.7611,155.03,154.97,0.17]
[1718225790467,16.1395,155.07,154.98,8.0]
[1718225790666,8.0,155.05,154.99,8.17]
[1718225790981,8.0,155.04,154.98,15.4263]
[1718225791182,8.0,155.02,154.96,8.17]
[1718225791558,8.0,155.03,154.97,8.34]
[1718225791771,8.0,155.03,154.98,0.17]
[1718225792587,16.1395,155.07,154.98,8.17]
[1718225792799,16.1395,155.07,154.99,8.0]
[1718225793195,8.0,155.04,154.99,8.0]
[1718225795302,8.0,155.04,154.98,8.17]
[1718225795667,8.0,155.04,154.99,8.0]
[1718225796069,16.1395,155.07,155.0,0.51]
[1718225796269,16.1395,155.07,155.0,8.51]
[1718225796570,8.0,155.05,155.0,8.17]
[1718225796788,259.6,155.08,155.0,8.17]
[1718225796993,8.0,155.05,155.0,8.17]
[1718225797299,8.0,155.06,155.0,8.17]
[1718225798378,8.0,155.05,154.99,0.34]
[1718225798580,8.0,155.04,154.99,0.17]
[1718225798778,8.0,155.04,154.99,8.17]
[1718225799398,8.0,155.05,154.99,8.17]
[1718225799600,9.6814005,155.07,155.0,0.34]
[1718225799897,9.6814005,155.07,155.0,8.34]
[1718225800110,8.0,155.05,155.0,8.34]
[1718225800267,8.0,155.05,154.99,8.17]
[1718225800788,8.0,155.05,154.98,0.34]
[1718225800989,8.0,155.04,154.99,8.0]
[1718225801485,8.0,155.04,154.98,8.34]
[1718225802401,8.0,155.04,154.99,8.0]
[1718225802776,8.0,155.04,154.98,8.34]
[1718225804901,8.0,155.04,154.95,6.3591]
[1718225805085,9.6814005,155.08,154.95,6.3591]
[1718225805086,115.1662,155.05,154.95,6.3591]
[1718225805290,8.0,154.99,154.95,6.3591]
[1718225805692,41.8514005,155.04,154.95,6.3591]
[1718225807087,0.17,155.03,154.94,23.4263]
[1718225807283,9.6814005,155.03,154.94,23.4263]
[1718225807706,9.8514005,155.04,154.95,8.0]
[1718225808097,8.0,155.0,154.95,8.0]
[1718225808494,8.0,155.0,154.94,15.4263]
[1718225808698,8.0,155.0,154.94,23.4263]
[1718225808893,100.0,155.03,154.95,8.0]
[1718225811111,100.0,155.03,154.94,23.4263]
[1718225811314,8.0,154.99,154.94,15.4263]
[1718225812311,8.0,154.97,154.91,6.365]
[1718225812513,8.0,154.96,154.91,6.365]
[1718225812723,8.0,154.95,154.91,6.365]
[1718225814300,8.0,154.96,154.91,6.365]
[1718225814702,8.0,154.97,154.91,14.365]
[1718225815515,9.68562665,155.0,154.92,8.17]
[1718225815722,8.0,154.99,154.93,8.0]
[1718225816817,9.68562665,155.01,154.93,8.0]
[1718225817010,8.0,154.98,154.93,8.0]
[1718225819128,8.0,154.97,154.92,8.17]
[1718225820310,8.0,154.97,154.91,14.365]
[1718225821537,9.68562665,154.99,154.91,6.365]
[1718225821705,8.0,154.92,154.87,6.2593]
[1718225821911,8.0,154.91,154.87,6.2593]
[1718225822210,8.0,154.9,154.86,15.0554]
[1718225822418,8.0,154.89,154.83,6.3896]
[1718225822649,8.0,154.89,154.84,8.0]
[1718225822811,17.68870887,154.9,154.84,8.0]
[1718225823141,17.68870887,154.9,154.83,6.3896]
[1718225823142,17.68870887,154.9,154.85,8.0]
[1718225823326,17.68870887,154.9,154.84,8.0]
[1718225823714,17.68870887,154.9,154.83,6.7296]
[1718225823912,9.68870887,154.89,154.84,8.0]
[1718225824325,17.68870887,154.89,154.84,8.0]
[1718225826220,8.0,154.89,154.84,8.0]
[1718225826446,8.0,154.89,154.83,14.5596]
[1718225827341,8.0,154.9,154.83,6.5596]
[1718225828332,8.0,154.89,154.83,6.5596]
[1718225828513,8.0,154.89,154.83,14.5596]
[1718225829225,8.0,154.9,154.84,8.0]
[1718225829528,8.0,154.9,154.83,6.3896]
[1718225829736,8.0,154.89,154.83,14.3896]
[1718225830328,8.0,154.88,154.83,14.3896]
[1718225830718,8.0,154.88,154.83,8.0]
[1718225831032,8.0,154.88,154.82,15.6823]
[1718225831234,8.0,154.88,154.83,8.0]
[1718225831441,8.0,154.88,154.82,23.6823]
[1718225832340,8.0,154.87,154.82,15.6823]
[1718225832840,8.0,154.87,154.82,8.0]
[1718225833346,8.0,154.88,154.83,8.0]
[1718225834342,25.39957395,154.93,154.82,2.5598]
[1718225834525,8.0,154.91,154.85,8.0]
[1718225834731,25.39957395,154.93,154.84,8.0]
[1718225834732,8.0,154.9,154.84,8.0]
[1718225835248,8.0,154.89,154.84,8.0]
[1718225835541,8.0,154.9,154.84,8.0]
[1718225836546,8.0,154.89,154.84,8.0]
[1718225837947,8.0,154.89,154.83,8.17]
[1718225838325,8.0,154.9,154.83,0.17]
[1718225838518,15.7089,154.93,154.82,0.17]
[1718225838519,8.0,154.89,154.82,0.17]
[1718225838829,8.0,154.9,154.82,0.17]
[1718225839444,15.7089,154.93,154.83,17.4339]
[1718225839744,8.0,154.93,154.88,8.0]
[1718225841545,259.6,154.95,154.88,8.0]
[1718225841750,8.0,154.93,154.88,8.0]
[1718225842219,8.0,154.94,154.88,8.0]
[1718225843122,8.0,154.93,154.88,8.0]
[1718225843744,8.0,154.94,154.88,8.0]
[1718225846229,8.0,154.93,154.86,0.17]
[1718225846458,8.0,154.93,154.88,8.0]
[1718225846932,116.5053,154.97,154.85,6.5934]
[1718225847124,8.0,154.91,154.85,6.5934]
[1718225847319,8.0,154.89,154.85,6.5934]
[1718225848960,8.0,154.9,154.85,6.5934]
[1718225849848,8.0,154.9,154.83,15.0442]
[1718225850346,8.0,154.89,154.83,15.0442]
[1718225851175,9.6896811,154.92,154.83,15.0442]
[1718225851333,9.6896811,154.92,154.85,8.0]
[1718225851530,9.6896811,154.92,154.83,15.0442]
[1718225851531,8.0,154.91,154.83,15.0442]
[1718225851732,8.0,154.9,154.85,8.0]
[1718225852042,8.0,154.9,154.84,8.0]
[1718225852347,17.6896811,154.92,154.87,8.0]
[1718225852838,8.0,154.92,154.87,8.0]
[1718225854553,17.68804418,154.93,154.87,8.0]
[1718225854750,8.0,154.93,154.87,8.0]
[1718225854953,8.0,154.92,154.84,0.17]
[1718225855141,8.0,154.92,154.84,20.68]
[1718225855351,17.68834056,154.92,154.86,8.0]
[1718225855646,8.0,154.92,154.86,8.0]
[1718225856272,17.68834056,154.92,154.84,0.68]
[1718225856547,17.68834056,154.92,154.86,8.0]
[1718225856758,8.0,154.92,154.86,8.0]
[1718225857428,8.0,154.92,154.84,23.0695]
[1718225857429,9.68792967,154.92,154.87,8.0]
[1718225858472,9.6876559,154.92,154.87,8.0]
[1718225858761,17.6876559,154.93,154.87,8.0]
[1718225859644,17.68734544,154.93,154.87,8.0]
[1718225861835,17.68725829,154.93,154.87,8.0]
[1718225862150,9.68725829,154.92,154.87,8.0]
[1718225864765,9.68725829,154.91,154.87,8.0]
[1718225869263,9.68746347,154.91,154.87,8.0]
[1718225873565,9.68746347,154.9,154.87,8.0]
[1718225873760,9.68746347,154.91,154.87,8.0]
[1718225874153,9.68746347,154.9,154.86,8.0]
[1718225876278,9.68746347,154.9,154.87,8.0]
[1718225877973,8.0,154.93,154.87,8.0]
[1718225878166,9.68760852,154.9,154.87,8.0]
[1718225879380,9.68760852,154.9,154.87,14.3982]
[1718225880684,9.68760852,154.9,154.84,20.51]
[1718225880856,9.68760852,154.9,154.87,8.0]
[1718225881359,9.68760852,154.89,154.87,8.0]
[1718225881771,8.0,154.93,154.87,8.0]
[1718225884364,8.0,154.94,154.87,8.0]
[1718225884986,8.0,154.93,154.87,8.0]
[1718225885175,8.0,154.93,154.86,8.0]
[1718225885382,8.0,154.93,154.87,8.0]
[1718225887483,9.68761532,154.88,154.87,8.0]
[1718225888496,9.68762398,154.88,154.87,8.0]
[1718225890473,9.68762398,154.88,154.87,8.17]
[1718225891190,9.68762398,154.89,154.87,8.17]
[1718225891382,9.68762398,154.89,154.88,8.0]
[1718225891785,8.0,154.95,154.88,8.0]
[1718225894173,8.0,154.94,154.88,8.0]
[1718225901702,10.0,154.92,154.85,0.17]
[1718225901906,9.68708641,154.87,154.85,0.51]
[1718225902204,9.68708641,154.87,154.86,8.0]
[1718225903801,9.68708641,154.87,154.86,8.17]
[1718225909488,10.0,154.92,154.86,8.17]
[1718225909705,10.0,154.92,154.88,8.0]
[1718225913707,10.0,154.92,154.87,8.0]
[1718225913903,9.68750173,154.88,154.87,8.0]
[1718225917214,0.51,154.98,154.88,0.17]
[1718225917215,9.68750173,154.89,154.88,0.17]
[1718225917527,10.0,154.98,154.89,2.5587]
[1718225917528,9.68750173,154.9,154.89,2.5587]
[1718225917702,4.47749474,154.92,154.91,2.3884]
[1718225918021,4.47749474,154.92,154.91,3.0684]
[1718225918202,10.0,154.98,154.92,0.17]
[1718225918391,10.0,154.98,154.92,1.9706313]
[1718225920800,10.0,154.98,154.95,8.0]
[1718225926219,15.9459,155.01,154.95,8.0]
[1718225926403,38.5116,155.04,154.97,8.0]
[1718225926404,16.5116,155.04,154.97,8.0]
[1718225926617,8.0,155.02,154.97,8.0]
[1718225928111,8.0,155.01,154.96,8.0]
[1718225930532,10.0,155.02,154.94,0.68]
[1718225930708,10.0,155.0,154.94,20.0]
[1718225930908,8.0,154.99,154.94,28.0]
[1718225931114,8.0,154.99,154.94,20.0]
[1718225931922,10.0,154.98,154.94,20.0]
[1718225932916,8.0,154.99,154.94,20.0]
[1718225933130,8.0,154.98,154.9,7.6744585]
[1718225933321,18.0,154.98,154.93,8.0]
[1718225934116,10.0,154.98,154.93,8.0]
[1718225934415,10.0,154.98,154.94,8.0]
[1718225934630,8.0,154.99,154.94,8.0]
[1718225935529,25.9536,155.0,154.94,8.0]
[1718225935737,10.0,155.0,154.95,8.0]
[1718225936420,10.0,155.0,154.93,2.5581]
[1718225936421,18.0,155.0,154.94,8.0]
[1718225938625,9.68356634,155.0,154.95,8.0]
[1718225938829,9.68356634,155.0,154.96,8.0]
[1718225939335,17.68356634,155.01,154.96,8.0]
[1718225940335,9.68356634,155.01,154.96,8.0]
[1718225941426,17.68356634,155.01,154.95,8.0]
[1718225943618,10.0,155.0,154.95,8.0]
[1718225943932,18.0,155.0,154.95,8.0]
[1718225947321,10.0,155.0,154.95,8.0]
[1718225948527,10.0,155.0,154.96,8.0]
[1718225949137,18.0,155.02,154.96,8.0]
[1718225949438,8.0,155.02,154.97,8.0]
[1718225949629,34.3851,155.04,154.99,8.0]
[1718225950041,34.3851,155.04,154.96,0.51]
[1718225950042,34.3851,155.04,154.98,8.0]
[1718225951124,8.0,155.03,154.98,8.0]
[1718225951519,10.0,155.02,154.97,8.0]
[1718225951824,18.0,155.02,154.97,8.0]
[1718225952345,18.0,155.02,154.96,0.17]
[1718225952346,18.0,155.02,154.95,0.34]
[1718225952523,18.0,155.02,154.96,8.0]
[1718225952841,26.3851,155.04,154.98,8.0]
[1718225953049,8.0,155.03,154.98,8.0]
[1718225955442,26.3851,155.04,154.98,8.0]
[1718225955635,34.3851,155.04,154.98,8.0]
[1718225956948,26.3851,155.04,154.98,8.0]
[1718225957148,259.6,155.07,154.99,8.0]
[1718225957451,26.1432,155.09,155.05,8.0]
[1718225957632,26.1432,155.09,155.06,8.0]
[1718225958249,26.1432,155.09,155.01,2.5568]
[1718225958250,10.0,155.11,155.07,8.0]
[1718225958469,16.5883,155.13,155.09,8.0]
[1718225959263,24.5883,155.13,155.07,0.17]
[1718225959434,16.5883,155.13,155.08,8.0]
[1718225960054,26.5883,155.13,155.09,8.0]
[1718225960231,26.5883,155.13,155.08,8.0]
[1718225962436,34.5883,155.13,155.08,8.0]
[1718225963858,34.5883,155.13,155.07,0.17]
[1718225963859,8.0,155.12,155.07,8.0]
[1718225965261,26.5883,155.13,155.07,8.0]
[1718225965438,34.5883,155.13,155.07,8.0]
[1718225970367,8.0,155.1,155.0,7.5082]
[1718225970554,8.0,155.1,155.05,8.0]
[1718225970754,8.0,155.1,155.02,2.3867]
[1718225970755,10.0,155.11,155.02,2.3867]
[1718225970939,18.0,155.11,155.05,8.0]
[1718225971241,8.0,155.1,155.0,7.5082]
[1718225971445,16.5883,155.13,154.96,10.1806]
[1718225971446,15.4105,155.08,154.96,10.1806]
[1718225971664,18.0,155.06,155.0,8.0]
[1718225972042,18.0,155.06,154.96,42.1807]
[1718225972265,8.0,155.06,155.01,8.0]
[1718225972631,18.0,155.06,155.01,8.0]
[1718225973554,18.0,155.06,154.96,47.39812508]
[1718225973756,18.0,155.06,155.01,8.0]
[1718225975532,10.0,155.06,155.01,8.0]
[1718225975738,10.0,155.06,155.02,8.0]
[1718225976157,33.4105,155.08,155.02,8.0]
[1718225977664,25.4105,155.08,155.04,8.0]
[1718225978644,15.4105,155.08,155.05,8.0]
[1718225979537,15.4105,155.08,155.03,0.51]
[1718225979742,15.4105,155.08,155.05,8.0]
[1718225980143,15.4105,155.08,155.03,0.51]
[1718225980347,15.4105,155.08,155.04,8.0]
[1718225980744,25.4105,155.08,155.03,0.17]
[1718225981055,33.4105,155.08,155.02,8.17]
[1718225981253,10.0,155.06,154.99,0.17]
[1718225981575,10.0,155.06,155.02,8.0]
[1718225981971,18.0,155.06,154.97,2.3875]
[1718225982267,10.0,155.06,155.01,8.0]
[1718225982672,25.4105,155.08,155.03,8.0]
[1718225982973,8.0,155.07,155.02,8.0]
[1718225983162,18.0,155.06,155.0,8.0]
[1718225983473,8.0,155.05,154.96,5.21742508]
[1718225983638,8.0,155.05,155.0,8.0]
[1718225984451,8.0,155.05,154.95,2.3877]
[1718225984738,10.0,155.04,154.99,8.0]
[1718225986351,18.0,155.04,154.99,8.0]
[1718225986670,18.0,155.04,154.98,8.0]
[1718225988390,10.0,155.02,154.94,2.3879]
[1718225988679,18.0,155.02,154.96,8.0]
[1718225989047,8.0,155.01,154.93,2.3881]
[1718225989245,8.0,155.01,154.95,8.0]
[1718225989471,8.0,155.01,154.96,8.0]
[1718225990688,10.0,155.0,154.95,8.0]
[1718225990847,10.0,155.0,154.93,0.17]
[1718225991051,18.0,155.0,154.93,0.51]
[1718225991250,18.0,155.0,154.95,8.0]
[1718225992058,10.0,155.0,154.93,0.17]
[1718225992371,8.0,154.99,154.93,0.17]
[1718225992571,8.0,154.99,154.94,8.0]
[1718225993075,8.0,154.99,154.92,2.3883]
[1718225993374,8.0,154.99,154.94,8.0]
[1718225993579,10.0,155.0,154.94,8.0]
[1718225993752,10.0,155.0,154.95,8.0]
[1718225994370,10.0,155.0,154.91,0.17]
[1718225994567,10.0,155.0,154.95,8.0]
[1718225995172,10.0,155.0,154.92,2.3882]
[1718225995381,10.0,155.0,154.95,8.0]
[1718225996265,10.0,155.0,154.96,8.0]
[1718225998960,10.0,155.0,154.93,0.17]
[1718225999161,10.0,155.0,154.96,8.0]
[1718225999463,10.0,155.0,154.95,8.0]
[1718226000590,8.0,155.01,154.95,8.0]
[1718226001371,18.0,155.02,154.96,8.0]
[1718226002567,10.0,155.0,154.96,8.0]
[1718226003599,10.0,155.0,154.97,8.0]
[1718226004079,10.0,155.0,154.93,0.17]
[1718226004275,18.0,155.0,154.95,8.0]
[1718226004593,23.065,154.99,154.94,8.0]
[1718226004772,10.0,154.98,154.94,8.0]
[1718226004972,10.0,154.98,154.92,0.17]
[1718226005281,10.0,154.95,154.9,8.0]
[1718226005488,18.0,154.97,154.91,8.0]
[1718226005802,18.0,154.97,154.92,8.0]
[1718226006177,18.0,154.97,154.94,8.0]
[1718226006178,10.0,154.97,154.94,8.0]
[1718226006491,10.0,154.97,154.95,8.0]
[1718226006784,10.0,154.97,154.94,8.0]
[1718226006986,10.0,154.97,154.93,8.0]
[1718226007679,6.4783,154.98,154.95,8.0]
[1718226007886,15.065,154.99,154.97,8.0]
[1718226008196,15.065,154.99,154.98,8.0]
[1718226008401,16.3131,155.02,154.98,8.0]
[1718226008600,15.4416,155.03,154.99,0.51]
[1718226008898,15.4416,155.03,155.02,8.0]
[1718226009117,6.2268,155.06,155.02,8.0]
[1718226009280,6.2268,155.06,155.03,8.0]
[1718226010402,6.2268,155.06,155.02,8.0]
[1718226010915,16.2268,155.06,154.99,0.17]
[1718226011087,16.2268,155.06,155.01,8.0]
[1718226011407,16.2268,155.06,154.98,0.68]
[1718226011408,24.2268,155.06,154.98,0.68]
[1718226011711,10.0,155.04,155.01,8.0]
[1718226011911,10.0,155.04,154.98,0.51]
[1718226011912,10.0,155.04,155.0,8.0]
[1718226012690,10.0,155.04,154.98,0.34]
[1718226012903,18.0,155.04,154.97,0.17]
[1718226013109,10.0,155.02,154.98,8.0]
[1718226015085,10.0,155.04,154.99,8.0]
[1718226017019,10.0,155.04,154.94,2.3879]
[1718226017222,18.0,155.04,154.99,8.0]
[1718226018238,18.0,155.04,154.95,0.68]
[1718226018437,18.0,155.04,154.99,8.0]
[1718226022339,18.0,155.04,154.98,8.0]
[1718226022723,10.0,155.02,154.98,8.0]
[1718226026346,10.0,155.02,154.99,8.0]
[1718226027048,10.0,155.04,154.99,8.0]
[1718226027220,18.0,155.04,154.99,8.0]
[1718226028633,10.0,155.02,154.95,0.68]
[1718226028935,10.0,155.02,154.99,8.0]
[1718226029442,10.0,155.02,154.98,8.0]
[1718226030342,10.0,155.02,154.99,8.0]
[1718226031135,16.2268,155.06,155.01,8.0]
[1718226031354,15.4416,155.07,155.04,8.0]
[1718226031723,15.4416,155.07,155.05,8.0]
[1718226032239,15.4416,155.07,155.04,8.0]
[1718226033932,16.6326,155.1,155.04,0.17]
[1718226034142,275.748,155.11,155.07,8.0]
[1718226034620,275.748,155.11,155.08,8.0]
[1718226035020,275.748,155.11,155.05,0.17]
[1718226035243,275.748,155.11,155.07,8.0]
[1718226035445,275.748,155.11,155.08,8.0]
[1718226035625,275.748,155.11,155.05,0.17]
[1718226035943,275.748,155.11,155.07,8.0]
[1718226038739,16.148,155.11,155.07,8.0]
[1718226040928,16.148,155.11,155.05,0.17]
[1718226041246,16.148,155.11,155.07,8.0]
[1718226043134,26.148,155.11,155.07,8.0]
[1718226043454,34.148,155.11,155.06,8.0]
[1718226043755,26.148,155.11,155.05,0.17]
[1718226043954,26.148,155.11,155.06,8.0]
[1718226045259,34.148,155.11,155.06,8.0]
[1718226046148,26.148,155.11,155.06,8.0]
[1718226046357,26.148,155.11,155.07,8.0]
[1718226047258,34.148,155.11,155.05,0.17]
[1718226047463,8.0,155.1,155.05,8.17]
[1718226048163,34.148,155.11,155.05,8.17]
[1718226049047,26.148,155.11,155.06,8.0]
[1718226049564,26.148,155.11,155.07,8.0]
[1718226050145,26.148,155.11,155.05,0.17]
[1718226050341,26.148,155.11,155.07,8.0]
[1718226052370,26.148,155.11,155.06,8.0]
[1718226053768,26.148,155.11,155.07,0.17]
[1718226053972,16.148,155.11,155.07,8.17]
[1718226054347,16.148,155.11,155.08,8.0]
[1718226054656,10.0,155.13,155.08,0.17]
[1718226054852,10.0,155.13,155.1,8.0]
[1718226055868,10.0,155.13,155.09,8.0]
[1718226056050,10.0,155.13,155.08,0.17]
[1718226056273,10.0,155.13,155.09,8.0]
[1718226058455,10.0,155.13,155.08,0.17]
[1718226058667,10.0,155.13,155.09,8.0]
[1718226060569,34.3056365,155.15,155.1,8.0]
[1718226060766,8.0,155.14,155.08,8.17]
[1718226060957,8.0,155.14,155.09,8.0]
[1718226061273,26.3056365,155.15,155.09,8.0]
[1718226061472,8.0,155.14,155.09,8.0]
[1718226063364,8.0,155.13,155.08,0.17]
[1718226063584,8.0,155.12,155.08,0.17]
[1718226063785,18.0,155.13,155.08,0.17]
[1718226063959,18.0,155.13,155.08,8.17]
[1718226066374,18.0,155.13,155.08,8.0]
[1718226066576,18.0,155.13,155.0,24.7091]
[1718226066577,8.0,155.09,154.99,7.905]
[1718226066784,15.2198,155.07,155.01,8.0]
[1718226066972,15.2198,155.07,154.96,32.0]
[1718226066973,8.0,155.06,154.96,32.0]
[1718226067158,8.0,155.06,155.01,8.0]
[1718226067358,8.0,155.05,155.0,8.0]
[1718226068575,10.0,155.06,155.0,8.0]
[1718226068776,15.2198,155.07,154.99,2.3872]
[1718226069076,24.5146,155.1,155.05,8.0]
[1718226069572,16.5146,155.1,155.05,8.0]
[1718226070378,24.5146,155.1,155.05,8.0]
[1718226071183,8.0,155.09,155.04,8.34]
[1718226071580,8.0,155.09,155.03,0.17]
[1718226071883,8.0,155.09,155.04,8.0]
[1718226072057,8.0,155.09,155.03,8.0]
[1718226072058,10.0,155.08,155.03,8.0]
[1718226072253,18.0,155.08,155.02,8.17]
[1718226072480,10.0,155.08,155.02,0.17]
[1718226072679,8.0,155.07,154.98,0.17]
[1718226072981,6.5146,155.1,154.97,20.0]
[1718226072982,10.0,155.06,154.97,20.0]
[1718226073195,18.0,155.06,155.01,8.0]
[1718226073365,10.0,155.06,155.01,8.0]
[1718226074365,10.0,155.06,155.02,8.0]
[1718226074863,8.0,155.05,155.0,0.17]
[1718226075067,16.0375,155.05,154.97,20.0]
[1718226075268,8.0,155.03,154.98,8.0]
[1718226075471,18.0,155.04,154.99,20.0]
[1718226075672,8.0,155.04,154.99,28.0]
[1718226075870,16.0375,155.05,154.99,20.0]
[1718226076083,10.0,155.06,155.0,8.0]
[1718226076259,10.0,155.06,155.03,8.0]
[1718226076466,10.0,155.08,155.03,8.0]
[1718226076790,16.0601,155.09,155.06,8.0]
[1718226077989,16.0601,155.09,155.05,8.0]
[1718226078191,18.0,155.08,155.03,0.17]
[1718226078391,8.0,155.07,155.03,0.17]
[1718226079293,10.0,155.06,154.96,3.8041]
[1718226079490,18.0,155.06,155.0,8.0]
[1718226080079,18.0,155.06,154.97,2.3875]
[1718226080280,18.0,155.06,155.0,8.0]
[1718226081095,18.0,155.06,154.99,0.51]
[1718226081096,10.0,155.06,154.99,0.51]
[1718226082088,10.0,155.08,155.0,0.17]
[1718226083173,10.0,155.08,155.0,2.557]
[1718226083504,10.0,155.08,155.01,2.8968]
[1718226083801,16.0601,155.09,155.02,0.34]
[1718226083981,16.0601,155.09,155.04,0.17]
[1718226084383,16.0601,155.09,155.04,0.34]
[1718226084604,16.0601,155.09,155.05,0.34]
[1718226088394,10.0,155.1,155.06,0.17]
[1718226088589,10.0,155.1,155.06,0.34]
[1718226088777,16.3726,155.13,155.06,0.34]
[1718226088778,10.0,155.12,155.06,0.34]
[1718226089107,16.3726,155.13,155.07,0.34]
[1718226089301,16.3726,155.13,155.08,0.17]
[1718226089483,10.0,155.12,155.08,0.17]
[1718226093414,16.3726,155.13,155.08,0.17]
[1718226093591,16.3726,155.13,155.08,0.34]
[1718226093797,16.3726,155.13,155.09,0.17]
[1718226095513,10.8333365,155.15,155.09,0.17]
[1718226095690,10.8333365,155.15,155.1,0.17]
[1718226095891,10.8333365,155.15,155.1,0.51]
[1718226095892,0.8333365,155.15,155.1,0.51]
[1718226096094,0.8333365,155.15,155.11,0.17]
[1718226096289,0.8333365,155.15,155.12,0.17]
[1718226097806,0.8333365,155.15,155.13,0.17]
[1718226098212,0.8333365,155.15,155.12,0.17]
[1718226099011,0.8333365,155.15,155.12,0.34]
[1718226099309,0.8333365,155.15,155.13,0.17]
[1718226099607,0.8333365,155.15,155.12,0.34]
[1718226099807,0.8333365,155.15,155.13,0.17]
[1718226100013,0.8333365,155.15,155.14,0.17]